[Event "*** Titled Tuesday Blitz"]
[Site "Chess.com"]
[Date "2021.03.02"]
[Round "2"]
[White "ehrenfeld"]
[Black "TheBigBoss04"]
[Result "0-1"]
[WhiteElo "2506"]
[BlackElo "2746"]
[TimeControl "180+1"]
[EndTime "10:18:03 PST"]
[Termination "TheBigBoss04 won on time"]

1. e4 {[%clk 0:02:44.7]} 1... g6 {[%clk 0:02:59.9]} 2. d4 {[%clk 0:02:43.5]}
2... Bg7 {[%clk 0:03:00.1]} 3. Nf3 {[%clk 0:02:44]} 3... d6 {[%clk 0:02:59.6]}
4. c3 {[%clk 0:02:43.4]} 4... Nf6 {[%clk 0:02:58.3]} 5. Bd3 {[%clk 0:02:43.4]}
5... O-O {[%clk 0:02:58.9]} 6. O-O {[%clk 0:02:43.3]} 6... Nc6 {[%clk
0:02:59.6]} 7. Re1 {[%clk 0:02:41.8]} 7... e5 {[%clk 0:02:59.9]} 8. h3 {[%clk
0:02:40.7]} 8... Re8 {[%clk 0:02:59.4]} 9. d5 {[%clk 0:02:25.5]} 9... Nb8 {[%clk
0:02:58.7]} 10. c4 {[%clk 0:02:25.2]} 10... a5 {[%clk 0:02:57.8]} 11. Nc3 {[%clk
0:02:24.4]} 11... Nbd7 {[%clk 0:02:58]} 12. Be3 {[%clk 0:02:23.3]} 12... Nc5
{[%clk 0:02:57.1]} 13. Bc2 {[%clk 0:02:20.7]} 13... Bd7 {[%clk 0:02:57]} 14. Rb1
{[%clk 0:02:18.5]} 14... Rf8 {[%clk 0:02:55.6]} 15. a3 {[%clk 0:02:16.2]} 15...
Nh5 {[%clk 0:02:30.5]} 16. b4 {[%clk 0:02:15.5]} 16... axb4 {[%clk 0:02:30.4]}
17. axb4 {[%clk 0:02:15.5]} 17... Na6 {[%clk 0:02:30.6]} 18. c5 {[%clk
0:02:11.7]} 18... Nf4 {[%clk 0:02:30.4]} 19. Bxf4 {[%clk 0:02:09.8]} 19... exf4
{[%clk 0:02:30.2]} 20. Qd2 {[%clk 0:01:45]} 20... dxc5 {[%clk 0:02:13.8]} 21.
bxc5 {[%clk 0:01:44.7]} 21... Nxc5 {[%clk 0:02:14.1]} 22. e5 {[%clk 0:01:44.6]}
22... Ra3 {[%clk 0:02:04.2]} 23. Ne4 {[%clk 0:01:19.3]} 23... Nxe4 {[%clk
0:01:52.3]} 24. Bxe4 {[%clk 0:01:19.2]} 24... Bc8 {[%clk 0:01:18]} 25. Qxf4
{[%clk 0:01:18.1]} 25... Qe7 {[%clk 0:01:13.9]} 26. d6 {[%clk 0:01:13.6]} 26...
cxd6 {[%clk 0:01:12.1]} 27. exd6 {[%clk 0:01:13.6]} 27... Qd7 {[%clk 0:00:37.6]}
28. Bd5 {[%clk 0:01:07.6]} 28... Ra6 {[%clk 0:00:33.1]} 29. Re7 {[%clk
0:00:49.1]} 29... Qxd6 {[%clk 0:00:33.1]} 30. Bxf7+ {[%clk 0:00:48.3]} 30... Kh8
{[%clk 0:00:32.7]} 31. Qxd6 {[%clk 0:00:45.4]} 31... Rxd6 {[%clk 0:00:33.6]} 32.
Bc4 {[%clk 0:00:24.7]} 32... Bf6 {[%clk 0:00:30.3]} 33. Re2 {[%clk 0:00:20.6]}
33... b6 {[%clk 0:00:28.5]} 34. Bb5 {[%clk 0:00:12.3]} 34... Bf5 {[%clk
0:00:22.9]} 35. Rbe1 {[%clk 0:00:10]} 35... Kg7 {[%clk 0:00:21.7]} 36. g4 {[%clk
0:00:06.9]} 36... Bd3 {[%clk 0:00:19.1]} 37. Bxd3 {[%clk 0:00:06.1]} 37... Rxd3
{[%clk 0:00:20]} 38. Kg2 {[%clk 0:00:06.4]} 38... b5 {[%clk 0:00:15.7]} 39. Re6
{[%clk 0:00:02.1]} 39... b4 {[%clk 0:00:14]} 0-1

[Event "*** Titled Tuesday Blitz"]
[Site "Chess.com"]
[Date "2021.03.02"]
[Round "2"]
[White "hellokostya"]
[Black "Konavets"]
[Result "0-1"]
[WhiteElo "2573"]
[BlackElo "2940"]
[TimeControl "180+1"]
[EndTime "10:18:04 PST"]
[Termination "Konavets won by resignation"]

1. d4 {[%clk 0:03:00.9]} 1... Nf6 {[%clk 0:02:59.6]} 2. c4 {[%clk 0:03:00]} 2...
d6 {[%clk 0:02:58.8]} 3. Nc3 {[%clk 0:02:59.5]} 3... Bf5 {[%clk 0:02:58.9]} 4.
Nf3 {[%clk 0:02:54.4]} 4... g6 {[%clk 0:02:52.2]} 5. g3 {[%clk 0:02:52.7]} 5...
Ne4 {[%clk 0:02:49.4]} 6. Nxe4 {[%clk 0:02:49.5]} 6... Bxe4 {[%clk 0:02:50.3]}
7. Bg2 {[%clk 0:02:49.7]} 7... Bg7 {[%clk 0:02:50.2]} 8. O-O {[%clk 0:02:50.3]}
8... O-O {[%clk 0:02:50.2]} 9. b3 {[%clk 0:02:48.2]} 9... c5 {[%clk 0:02:48.8]}
10. Bb2 {[%clk 0:02:47.3]} 10... Nc6 {[%clk 0:02:48.7]} 11. e3 {[%clk
0:02:44.7]} 11... cxd4 {[%clk 0:02:45.6]} 12. exd4 {[%clk 0:02:44.2]} 12... d5
{[%clk 0:02:45.5]} 13. c5 {[%clk 0:02:41.7]} 13... b6 {[%clk 0:02:42.4]} 14. Rc1
{[%clk 0:02:38.7]} 14... Rc8 {[%clk 0:02:41]} 15. Qd2 {[%clk 0:02:36.1]} 15...
e6 {[%clk 0:02:39.8]} 16. b4 {[%clk 0:02:35.2]} 16... bxc5 {[%clk 0:02:36.9]}
17. Rxc5 {[%clk 0:02:30.2]} 17... Ne7 {[%clk 0:02:33.2]} 18. Rfc1 {[%clk
0:02:16.9]} 18... Rb8 {[%clk 0:02:33.3]} 19. a3 {[%clk 0:02:15.1]} 19... Nf5
{[%clk 0:02:29.3]} 20. Ne5 {[%clk 0:02:09.6]} 20... Bxg2 {[%clk 0:02:28.9]} 21.
Kxg2 {[%clk 0:02:10.5]} 21... Rb7 {[%clk 0:02:22.6]} 22. b5 {[%clk 0:02:01.2]}
22... Nd6 {[%clk 0:02:21.7]} 23. Qd3 {[%clk 0:01:52.8]} 23... a6 {[%clk
0:02:15.9]} 24. Nc6 {[%clk 0:01:46.9]} 24... Qd7 {[%clk 0:02:08]} 25. a4 {[%clk
0:01:44.9]} 25... axb5 {[%clk 0:02:07.3]} 26. axb5 {[%clk 0:01:44.8]} 26... Nc4
{[%clk 0:02:07.3]} 27. R1xc4 {[%clk 0:01:36.7]} 27... dxc4 {[%clk 0:02:06.6]}
28. Qxc4 {[%clk 0:01:37.6]} 28... Ra8 {[%clk 0:01:56.6]} 29. Bc1 {[%clk
0:01:34.5]} 29... Bf8 {[%clk 0:01:46.8]} 30. Ne5 {[%clk 0:01:15.2]} 30... Qd8
{[%clk 0:01:46.5]} 31. Be3 {[%clk 0:00:54.8]} 31... Bxc5 {[%clk 0:01:40.7]} 32.
dxc5 {[%clk 0:00:54.8]} 32... Qd1 {[%clk 0:00:49.3]} 33. Bd4 {[%clk 0:00:40.9]}
33... Ra4 {[%clk 0:00:44.5]} 34. c6 {[%clk 0:00:38.8]} 34... Rxc4 {[%clk
0:00:27.1]} 35. cxb7 {[%clk 0:00:38.9]} 35... Rxd4 {[%clk 0:00:27.6]} 36. b8=Q+
{[%clk 0:00:38.9]} 36... Rd8 {[%clk 0:00:26.9]} 37. Qc7 {[%clk 0:00:35.9]} 37...
Qd5+ {[%clk 0:00:26.9]} 38. Kh3 {[%clk 0:00:35.8]} 38... Rf8 {[%clk 0:00:19.7]}
39. b6 {[%clk 0:00:35.9]} 39... f6 {[%clk 0:00:19.2]} 40. Ng4 {[%clk 0:00:28.2]}
40... Qh5+ {[%clk 0:00:17.3]} 41. Kg2 {[%clk 0:00:28.5]} 41... Qxg4 {[%clk
0:00:17.8]} 42. b7 {[%clk 0:00:29.2]} 42... Qb4 {[%clk 0:00:16.1]} 43. Qd7
{[%clk 0:00:28.7]} 43... Qb6 {[%clk 0:00:15.5]} 44. Qc8 {[%clk 0:00:27.4]} 44...
Kg7 {[%clk 0:00:10.7]} 45. h4 {[%clk 0:00:25.4]} 45... h5 {[%clk 0:00:10.4]} 46.
Kg1 {[%clk 0:00:25.5]} 46... e5 {[%clk 0:00:10]} 47. Kg2 {[%clk 0:00:19.3]}
47... Qd8 {[%clk 0:00:09.5]} 48. Qc6 {[%clk 0:00:18.4]} 48... Qb8 {[%clk
0:00:09.4]} 49. Qd7+ {[%clk 0:00:18.2]} 49... Rf7 {[%clk 0:00:09.5]} 0-1

[Event "*** Titled Tuesday Blitz"]
[Site "Chess.com"]
[Date "2021.03.02"]
[Round "2"]
[White "semchik73"]
[Black "bratkoo"]
[Result "0-1"]
[WhiteElo "2297"]
[BlackElo "2510"]
[TimeControl "180+1"]
[EndTime "10:18:04 PST"]
[Termination "bratkoo won by resignation"]

1. Nf3 {[%clk 0:03:00.5]} 1... e6 {[%clk 0:03:00.5]} 2. d4 {[%clk 0:03:00.1]}
2... d5 {[%clk 0:03:01.4]} 3. c4 {[%clk 0:03:00]} 3... Nf6 {[%clk 0:03:01.8]} 4.
Nc3 {[%clk 0:03:00.1]} 4... Be7 {[%clk 0:03:01.4]} 5. Bg5 {[%clk 0:02:59.5]}
5... O-O {[%clk 0:03:01.6]} 6. e3 {[%clk 0:02:59.1]} 6... h6 {[%clk 0:03:02.3]}
7. Bh4 {[%clk 0:02:59.2]} 7... Ne4 {[%clk 0:03:02.9]} 8. Bxe7 {[%clk 0:02:58.2]}
8... Qxe7 {[%clk 0:03:03.5]} 9. Bd3 {[%clk 0:02:57.7]} 9... Nxc3 {[%clk
0:03:02.6]} 10. bxc3 {[%clk 0:02:57.2]} 10... dxc4 {[%clk 0:03:03.5]} 11. Bxc4
{[%clk 0:02:57.2]} 11... c5 {[%clk 0:03:04.4]} 12. O-O {[%clk 0:02:56.5]} 12...
b6 {[%clk 0:03:04.2]} 13. Ne5 {[%clk 0:02:34.7]} 13... Bb7 {[%clk 0:03:04.2]}
14. Qh5 {[%clk 0:02:28.4]} 14... Nd7 {[%clk 0:02:52.3]} 15. f4 {[%clk
0:02:13.6]} 15... Rac8 {[%clk 0:02:46.7]} 16. Bd3 {[%clk 0:02:08.8]} 16... Nf6
{[%clk 0:02:40.5]} 17. Qh4 {[%clk 0:02:02.7]} 17... Rc7 {[%clk 0:02:21.7]} 18.
g4 {[%clk 0:01:25.3]} 18... Nd5 {[%clk 0:02:18]} 19. Qh3 {[%clk 0:01:14.5]}
19... Nxc3 {[%clk 0:01:19.6]} 20. g5 {[%clk 0:01:13.8]} 20... Be4 {[%clk
0:01:13.7]} 21. Bxe4 {[%clk 0:01:07.3]} 21... Nxe4 {[%clk 0:01:13.2]} 22. gxh6
{[%clk 0:01:07.7]} 22... g6 {[%clk 0:01:11.6]} 23. h7+ {[%clk 0:00:53.3]} 23...
Kg7 {[%clk 0:01:04.3]} 24. Qg2 {[%clk 0:00:23.5]} 24... Nd6 {[%clk 0:00:51.9]}
25. e4 {[%clk 0:00:21]} 25... cxd4 {[%clk 0:00:42.4]} 26. f5 {[%clk 0:00:20.4]}
26... exf5 {[%clk 0:00:42]} 27. exf5 {[%clk 0:00:18.5]} 27... Qxe5 {[%clk
0:00:38.9]} 28. f6+ {[%clk 0:00:18.5]} 28... Kh8 {[%clk 0:00:27.2]} 29. Qh3
{[%clk 0:00:16.5]} 29... Qe3+ {[%clk 0:00:21.7]} 30. Qxe3 {[%clk 0:00:16.2]}
30... dxe3 {[%clk 0:00:22.6]} 31. Rfe1 {[%clk 0:00:15.7]} 31... Nf5 {[%clk
0:00:22.8]} 32. Red1 {[%clk 0:00:15]} 32... Kxh7 {[%clk 0:00:23.3]} 33. Rd5
{[%clk 0:00:13.7]} 33... Rc6 {[%clk 0:00:23]} 34. Re1 {[%clk 0:00:13.8]} 34...
Rxf6 {[%clk 0:00:22.9]} 35. Rd7 {[%clk 0:00:14.7]} 35... a5 {[%clk 0:00:19.7]}
36. Kh1 {[%clk 0:00:15]} 36... Re6 {[%clk 0:00:20.6]} 37. Rd3 {[%clk 0:00:14]}
37... Kg7 {[%clk 0:00:21.5]} 38. Kg2 {[%clk 0:00:13.4]} 38... Rfe8 {[%clk
0:00:22.2]} 39. Kf3 {[%clk 0:00:12.7]} 39... Rd6 {[%clk 0:00:22.8]} 40. Rc3
{[%clk 0:00:12.1]} 40... Rf6 {[%clk 0:00:22.5]} 41. Kg4 {[%clk 0:00:11.8]} 41...
e2 {[%clk 0:00:22.4]} 42. Rc2 {[%clk 0:00:10.2]} 42... Re4+ {[%clk 0:00:22.7]}
43. Kh3 {[%clk 0:00:08.4]} 43... Nd4 {[%clk 0:00:22.6]} 44. Rd2 {[%clk
0:00:07.9]} 44... Rf3+ {[%clk 0:00:23.2]} 45. Kg2 {[%clk 0:00:08]} 45... Rg4+
{[%clk 0:00:23.1]} 46. Kh1 {[%clk 0:00:07.4]} 46... Rf1+ {[%clk 0:00:24]} 0-1

[Event "*** Titled Tuesday Blitz"]
[Site "Chess.com"]
[Date "2021.03.02"]
[Round "2"]
[White "anpospan"]
[Black "mikolka1985"]
[Result "0-1"]
[WhiteElo "2381"]
[BlackElo "2649"]
[TimeControl "180+1"]
[EndTime "10:18:07 PST"]
[Termination "mikolka1985 won on time"]

1. d4 {[%clk 0:03:00.9]} 1... Nf6 {[%clk 0:02:58.9]} 2. c4 {[%clk 0:02:57.1]}
2... e6 {[%clk 0:02:58.5]} 3. Nc3 {[%clk 0:02:57.3]} 3... Bb4 {[%clk 0:02:57.7]}
4. a3 {[%clk 0:02:57.4]} 4... Bxc3+ {[%clk 0:02:56.7]} 5. bxc3 {[%clk
0:02:58.3]} 5... b6 {[%clk 0:02:43.5]} 6. f3 {[%clk 0:02:57.8]} 6... Ba6 {[%clk
0:02:37.9]} 7. e4 {[%clk 0:02:57.4]} 7... Nc6 {[%clk 0:02:37.1]} 8. Bd3 {[%clk
0:02:56.8]} 8... Na5 {[%clk 0:02:35.4]} 9. Qe2 {[%clk 0:02:56.8]} 9... d6 {[%clk
0:02:33.9]} 10. Be3 {[%clk 0:02:51.5]} 10... Qd7 {[%clk 0:02:32.6]} 11. Nh3
{[%clk 0:02:30.8]} 11... Qa4 {[%clk 0:02:31.2]} 12. c5 {[%clk 0:02:13.6]} 12...
Bxd3 {[%clk 0:02:29.7]} 13. Qxd3 {[%clk 0:02:12.9]} 13... dxc5 {[%clk
0:02:29.4]} 14. O-O {[%clk 0:01:13]} 14... O-O-O {[%clk 0:02:28.2]} 15. Ng5
{[%clk 0:01:07.1]} 15... Rd7 {[%clk 0:02:26.4]} 16. Qa6+ {[%clk 0:01:05]} 16...
Kb8 {[%clk 0:02:25.6]} 17. dxc5 {[%clk 0:01:00.5]} 17... Qc4 {[%clk 0:02:22.7]}
18. Qxc4 {[%clk 0:00:49.7]} 18... Nxc4 {[%clk 0:02:22]} 19. c6 {[%clk
0:00:38.4]} 19... Rd3 {[%clk 0:02:20.5]} 20. Bd4 {[%clk 0:00:19.1]} 20... e5
{[%clk 0:02:03]} 21. Nxf7 {[%clk 0:00:19.1]} 21... Re8 {[%clk 0:02:02.5]} 22.
Nxe5 {[%clk 0:00:17.3]} 22... Nxe5 {[%clk 0:02:01.4]} 23. Rfd1 {[%clk
0:00:14.9]} 23... Rxd1+ {[%clk 0:01:59.1]} 24. Rxd1 {[%clk 0:00:14.4]} 24...
Nxc6 {[%clk 0:01:59.3]} 25. Bxf6 {[%clk 0:00:11.6]} 25... gxf6 {[%clk
0:01:58.9]} 26. Rd7 {[%clk 0:00:12.3]} 26... Re7 {[%clk 0:01:56.2]} 27. Rd5
{[%clk 0:00:12.4]} 27... Kc8 {[%clk 0:01:51.7]} 28. h4 {[%clk 0:00:12.5]} 28...
Rd7 {[%clk 0:01:49.5]} 29. Rf5 {[%clk 0:00:12.5]} 29... Rd6 {[%clk 0:01:46.8]}
30. Rh5 {[%clk 0:00:11.1]} 30... Rd7 {[%clk 0:01:46.6]} 31. Rf5 {[%clk
0:00:11.1]} 31... Rf7 {[%clk 0:01:45.2]} 32. Kh2 {[%clk 0:00:11.2]} 32... Ne7
{[%clk 0:01:44.4]} 33. Rh5 {[%clk 0:00:09.6]} 33... Kd7 {[%clk 0:01:43.3]} 34.
Kh3 {[%clk 0:00:09.1]} 34... Ke6 {[%clk 0:01:42.6]} 35. f4 {[%clk 0:00:08.3]}
35... Rg7 {[%clk 0:01:27.6]} 36. g4 {[%clk 0:00:07.7]} 36... Kf7 {[%clk
0:01:26.4]} 37. Kg3 {[%clk 0:00:05.8]} 37... c5 {[%clk 0:01:24.3]} 38. Kf3
{[%clk 0:00:05.8]} 38... Ke6 {[%clk 0:01:18.5]} 39. e5 {[%clk 0:00:04.9]} 39...
fxe5 {[%clk 0:01:08.6]} 40. Rxe5+ {[%clk 0:00:04]} 40... Kd6 {[%clk 0:01:08.5]}
41. Rh5 {[%clk 0:00:04.1]} 41... Rf7 {[%clk 0:01:02.4]} 42. Rh6+ {[%clk
0:00:04.2]} 42... Kd7 {[%clk 0:01:01.6]} 43. Ke4 {[%clk 0:00:03.5]} 43... Ng6
{[%clk 0:00:56.5]} 44. f5 {[%clk 0:00:03.5]} 44... Re7+ {[%clk 0:00:56.3]} 45.
Kd5 {[%clk 0:00:03.1]} 45... Nf4+ {[%clk 0:00:55.3]} 46. Kc4 {[%clk 0:00:02.6]}
46... Re4+ {[%clk 0:00:50.3]} 47. Kb5 {[%clk 0:00:02.1]} 47... Re7 {[%clk
0:00:48.4]} 48. f6 {[%clk 0:00:01.9]} 48... Rf7 {[%clk 0:00:47.9]} 49. g5 {[%clk
0:00:02.3]} 49... Ke6 {[%clk 0:00:43.7]} 50. h5 {[%clk 0:00:02.5]} 50... Kf5
{[%clk 0:00:43.3]} 51. Rxh7 {[%clk 0:00:01.8]} 51... Rxh7 {[%clk 0:00:42.6]} 52.
g6 {[%clk 0:00:02.2]} 52... Nxg6 {[%clk 0:00:42.2]} 0-1

[Event "*** Titled Tuesday Blitz"]
[Site "Chess.com"]
[Date "2021.03.02"]
[Round "2"]
[White "zurzan"]
[Black "annamaja"]
[Result "0-1"]
[WhiteElo "2065"]
[BlackElo "2378"]
[TimeControl "180+1"]
[EndTime "10:18:07 PST"]
[Termination "annamaja won by resignation"]

1. f4 {[%clk 0:03:00.9]} 1... d5 {[%clk 0:02:59.9]} 2. Nf3 {[%clk 0:03:00.8]}
2... Nf6 {[%clk 0:03:00.2]} 3. g3 {[%clk 0:03:01.1]} 3... e6 {[%clk 0:02:55.6]}
4. Bg2 {[%clk 0:03:01.2]} 4... Bd6 {[%clk 0:02:56.1]} 5. O-O {[%clk 0:03:01.1]}
5... c5 {[%clk 0:02:56.2]} 6. d3 {[%clk 0:03:01.4]} 6... Nc6 {[%clk 0:02:54.9]}
7. c3 {[%clk 0:03:01.4]} 7... O-O {[%clk 0:02:52.9]} 8. Qe1 {[%clk 0:03:01]}
8... d4 {[%clk 0:02:48.3]} 9. e4 {[%clk 0:02:59.1]} 9... dxe3 {[%clk 0:02:44.9]}
10. Bxe3 {[%clk 0:02:59]} 10... Qc7 {[%clk 0:02:28.7]} 11. Na3 {[%clk
0:02:57.3]} 11... a6 {[%clk 0:02:26.5]} 12. Nc4 {[%clk 0:02:55.1]} 12... Be7
{[%clk 0:02:24]} 13. Rd1 {[%clk 0:02:48.5]} 13... Nd5 {[%clk 0:02:16.6]} 14. Bc1
{[%clk 0:02:45.8]} 14... b5 {[%clk 0:02:11.9]} 15. Nce5 {[%clk 0:02:45.1]} 15...
Nxe5 {[%clk 0:02:09]} 16. Nxe5 {[%clk 0:02:45.1]} 16... Bb7 {[%clk 0:02:09.5]}
17. h3 {[%clk 0:02:41.1]} 17... b4 {[%clk 0:02:05.1]} 18. c4 {[%clk 0:02:38.1]}
18... Nf6 {[%clk 0:01:57.1]} 19. b3 {[%clk 0:02:28.1]} 19... Bxg2 {[%clk
0:01:53.4]} 20. Kxg2 {[%clk 0:02:29]} 20... a5 {[%clk 0:01:52.2]} 21. d4 {[%clk
0:02:21.7]} 21... cxd4 {[%clk 0:01:49.1]} 22. Rxd4 {[%clk 0:02:21.4]} 22... Bc5
{[%clk 0:01:47.4]} 23. Rd3 {[%clk 0:02:15.7]} 23... a4 {[%clk 0:01:43.2]} 24.
Be3 {[%clk 0:02:08.6]} 24... axb3 {[%clk 0:01:37]} 25. axb3 {[%clk 0:02:08]}
25... Ra2+ {[%clk 0:01:21]} 26. Rf2 {[%clk 0:02:07.5]} 26... Rfa8 {[%clk
0:01:08.9]} 27. Rdd2 {[%clk 0:02:01.3]} 27... Rxd2 {[%clk 0:01:06]} 28. Qxd2
{[%clk 0:01:50.4]} 28... Ne4 {[%clk 0:01:02.5]} 29. Qd7 {[%clk 0:01:41.5]} 29...
Qxd7 {[%clk 0:00:54]} 30. Nxd7 {[%clk 0:01:42.4]} 30... Nxf2 {[%clk 0:00:47.4]}
31. Bxc5 {[%clk 0:01:41.3]} 31... Nd3 {[%clk 0:00:47.2]} 32. Be3 {[%clk
0:01:34.7]} 32... Ra2+ {[%clk 0:00:29.9]} 33. Kf3 {[%clk 0:01:34.2]} 33... f5
{[%clk 0:00:27.5]} 34. Bc5 {[%clk 0:01:03.5]} 34... Rb2 {[%clk 0:00:17.6]} 35.
Bd4 {[%clk 0:00:57.9]} 35... Rxb3 {[%clk 0:00:17.7]} 36. Ke2 {[%clk 0:00:58.2]}
36... Nc1+ {[%clk 0:00:12.1]} 37. Kd2 {[%clk 0:00:57.3]} 37... Rd3+ {[%clk
0:00:12.3]} 38. Kxc1 {[%clk 0:00:57.2]} 38... Rxd4 {[%clk 0:00:13.2]} 39. Ne5
{[%clk 0:00:56.5]} 39... Kf8 {[%clk 0:00:09.5]} 40. Kc2 {[%clk 0:00:56.7]} 40...
Re4 {[%clk 0:00:09.4]} 41. c5 {[%clk 0:00:55.8]} 41... Ke8 {[%clk 0:00:07.6]}
42. c6 {[%clk 0:00:55.7]} 42... Kd8 {[%clk 0:00:07]} 43. Kb3 {[%clk 0:00:55.9]}
43... Kc7 {[%clk 0:00:07]} 44. Nf7 {[%clk 0:00:37.2]} 44... Re3+ {[%clk
0:00:07.1]} 45. Kxb4 {[%clk 0:00:36.8]} 45... Rxg3 {[%clk 0:00:08]} 46. Ne5
{[%clk 0:00:36]} 46... Rxh3 {[%clk 0:00:08]} 47. Kc5 {[%clk 0:00:36.4]} 47...
Rc3+ {[%clk 0:00:07.8]} 48. Kd4 {[%clk 0:00:36.6]} 48... Rc1 {[%clk 0:00:07.5]}
49. Ke3 {[%clk 0:00:34.8]} 49... h5 {[%clk 0:00:06.7]} 50. Kf3 {[%clk
0:00:34.9]} 50... Rc5 {[%clk 0:00:07.1]} 51. Kg3 {[%clk 0:00:34.4]} 51... Rxe5
{[%clk 0:00:07.1]} 52. fxe5 {[%clk 0:00:33.6]} 52... Kxc6 {[%clk 0:00:08]} 53.
Kh4 {[%clk 0:00:33.5]} 53... Kd5 {[%clk 0:00:08.9]} 0-1

[Event "*** Titled Tuesday Blitz"]
[Site "Chess.com"]
[Date "2021.03.02"]
[Round "2"]
[White "Thjop"]
[Black "stasiek18"]
[Result "1-0"]
[WhiteElo "2656"]
[BlackElo "2401"]
[TimeControl "180+1"]
[EndTime "10:18:09 PST"]
[Termination "Thjop won by resignation"]

1. e4 {[%clk 0:02:55.6]} 1... e6 {[%clk 0:03:00.3]} 2. d4 {[%clk 0:02:55.6]}
2... d5 {[%clk 0:03:01.2]} 3. Nd2 {[%clk 0:02:56.2]} 3... c5 {[%clk 0:03:00]} 4.
Ngf3 {[%clk 0:02:56.2]} 4... cxd4 {[%clk 0:02:59.4]} 5. Nxd4 {[%clk 0:02:57.1]}
5... Nc6 {[%clk 0:02:59.3]} 6. Bb5 {[%clk 0:02:57.2]} 6... Bd7 {[%clk
0:02:59.6]} 7. Nxc6 {[%clk 0:02:57.7]} 7... bxc6 {[%clk 0:03:00.5]} 8. Bd3
{[%clk 0:02:58.3]} 8... Bd6 {[%clk 0:02:58.2]} 9. Qe2 {[%clk 0:02:58.9]} 9...
Qc7 {[%clk 0:02:51.9]} 10. Nf3 {[%clk 0:02:58.4]} 10... dxe4 {[%clk 0:02:46.4]}
11. Bxe4 {[%clk 0:02:56.6]} 11... Nf6 {[%clk 0:02:45.4]} 12. Bd3 {[%clk
0:02:56.6]} 12... c5 {[%clk 0:02:40.6]} 13. O-O {[%clk 0:02:51.3]} 13... Bc6
{[%clk 0:02:40.7]} 14. h3 {[%clk 0:02:50]} 14... h6 {[%clk 0:02:34]} 15. b3
{[%clk 0:02:48.8]} 15... a5 {[%clk 0:02:26.7]} 16. a4 {[%clk 0:02:46.7]} 16...
O-O {[%clk 0:02:19.6]} 17. Bb2 {[%clk 0:02:43.9]} 17... Nh5 {[%clk 0:01:50.6]}
18. Rae1 {[%clk 0:01:39.2]} 18... Nf4 {[%clk 0:01:47.8]} 19. Qe3 {[%clk
0:01:39.2]} 19... Rae8 {[%clk 0:01:20.9]} 20. Bb5 {[%clk 0:01:28.3]} 20... Bxb5
{[%clk 0:01:11.7]} 21. axb5 {[%clk 0:01:29.2]} 21... c4 {[%clk 0:01:03.2]} 22.
Be5 {[%clk 0:01:16.8]} 22... Bxe5 {[%clk 0:00:59.4]} 23. Qxe5 {[%clk 0:01:00.9]}
23... Qxe5 {[%clk 0:00:58]} 24. Nxe5 {[%clk 0:01:01.8]} 24... cxb3 {[%clk
0:00:58.6]} 25. cxb3 {[%clk 0:01:02.6]} 25... Rd8 {[%clk 0:00:51.7]} 26. Ra1
{[%clk 0:00:50.2]} 26... Nd3 {[%clk 0:00:47.9]} 27. Nc6 {[%clk 0:00:40.7]} 27...
Rd5 {[%clk 0:00:47.9]} 28. Ne7+ {[%clk 0:00:40.4]} 28... Kh7 {[%clk 0:00:47.7]}
29. Nxd5 {[%clk 0:00:40.5]} 29... exd5 {[%clk 0:00:48.6]} 30. Rxa5 {[%clk
0:00:37.1]} 30... Rb8 {[%clk 0:00:46.9]} 31. Rd1 {[%clk 0:00:35.1]} 31... Nf4
{[%clk 0:00:46.8]} 32. g3 {[%clk 0:00:31]} 32... Nxh3+ {[%clk 0:00:46.1]} 33.
Kg2 {[%clk 0:00:31.3]} 33... Ng5 {[%clk 0:00:47]} 34. Rxd5 {[%clk 0:00:31.1]}
34... Kg6 {[%clk 0:00:41.9]} 35. Ra6+ {[%clk 0:00:28.8]} 35... f6 {[%clk
0:00:42.1]} 36. b6 {[%clk 0:00:28.9]} 36... Ne4 {[%clk 0:00:41.2]} 37. Rb5
{[%clk 0:00:23.1]} 37... Nc3 {[%clk 0:00:41.2]} 38. Rc5 {[%clk 0:00:19.3]} 38...
Ne4 {[%clk 0:00:41.3]} 39. Rc7 {[%clk 0:00:19.4]} 39... Nd6 {[%clk 0:00:26.2]}
40. b7 {[%clk 0:00:16.4]} 40... Rxb7 {[%clk 0:00:25.4]} 41. Rxb7 {[%clk
0:00:16.1]} 41... Nxb7 {[%clk 0:00:26.3]} 42. Rb6 {[%clk 0:00:16.5]} 42... Nc5
{[%clk 0:00:26.1]} 43. b4 {[%clk 0:00:16.6]} 43... Nd3 {[%clk 0:00:23.8]} 44. b5
{[%clk 0:00:16.3]} 44... Kf5 {[%clk 0:00:24]} 45. Rb7 {[%clk 0:00:15.8]} 45...
g5 {[%clk 0:00:22.5]} 46. b6 {[%clk 0:00:16.1]} 46... Ke6 {[%clk 0:00:19.6]} 47.
Rh7 {[%clk 0:00:14.5]} 47... Nc5 {[%clk 0:00:17.8]} 48. b7 {[%clk 0:00:12.8]}
48... Na6 {[%clk 0:00:18.1]} 49. Rh8 {[%clk 0:00:12.2]} 1-0